Workbook

Sheet Synthese
B4: FORMATION | C4: MESURE DE PERFORMANCE
B5: FORMATEUR | C5: Philippe DUCHEMIN
B6: SOCIETE
B7: DATE DE MISE A JOUR | C7: 2022-11-14
B10: ONGLETS
A12: 1 | B12: Performance | C12: Exercices 1 à 5
A14: 2 | B14: Tri | C14: Exercice 6
A16: 3 | B16: Dietz | C16: Exercices 7 et 8
A18: 4 | B18: Twrr | C18: Exercices 9 à 11
A20: 5 | B20: DietzPortefeuille | C20: Exercice 12

Sheet Performance
A1: PERFORMANCE
A3: 1 | B3: Rentabilité mono période | S3: Exemple de recomposition en continu
S4: NB recomposition période | U4: P | V4: Taux
B5: Valeur initiale | C5: 40000 | D5: HAUSSE | F5: Valeur initiale | G5: 50000 | H5: BAISSE | S5: =MAX(T:T) -> 4200 | T5: 1 | U5: 40000
B6: Valeur finale | C6: 42000 | F6: Valeur finale | G6: 40000 | S6: Après recomposition | T6: 2 | U6: =V6+U5 -> 40000.46467 | V6: =U5*$C$10*1/$S$5 -> 0.4646682302
S7: Invt (t1) | T7: 3 | U7: =V7+U6 -> 40000.92934 | V7: =U6*$C$10*1/$S$5 -> 0.4646736281
B8: Performance en valeur | C8: =C6-C5 -> 2000 | D8: =form(C8) -> =C6-C5 | F8: Performance en valeur | G8: =G6-G5 -> -10000 | I8: =form(G8) -> =G6-G5 | R8: P1 réel | S8: 50000 | T8: 4 | U8: =V8+U7 -> 40001.39402 | V8: 0.4646790261
B9: Performance arithmétique | C9: =C6/C5-1 -> 0.05 | D9: =form(C9) -> =C6/C5-1 | E9: =1-EXP(-C9) -> 0.0487705755 | F9: Performance arithmétique | G9: =G6/G5-1 -> -0.2 | I9: =form(G9) -> =G6/G5-1 | T9: 5 | U9: 40001.85871 | V9: 0.4646844241
B10: Performance continu | C10: =LN(C6/C5) -> 0.04879016417 | D10: =form(C10) -> =LN(C6/C5) | E10: =EXP(-C10) -> 0.9523809524 | F10: Performance continue | G10: =LN(G6/G5) -> -0.2231435513 | I10: =form(G10) -> =LN(G6/G5) | R10: PI Cacl | S10: =U4204 -> 41999.5002 | T10: 6 | U10: 40002.3234 | V10: 0.4646898222
C11: 4.486857902e-07 | T11: 7 | U11: 40002.78809 | V11: 0.4646952204
A12: 2 | B12: Rentabilité mono période, avec flux intermédiaire | T12: 8 | U12: 40003.25279 | V12: 0.4647006186
T13: 9 | U13: 40003.7175 | V13: 0.4647060169
B14: Flux d'investissement | C14: 5000 | F14: Investissement de 5 000, donc baisse du revenu de 10 000 à 5 000 | T14: 10 | U14: 40004.18221 | V14: 0.4647114153
T15: 11 | U15: 40004.64693 | V15: 0.4647168137
C16: début | D16: fin | E16: valeur | F16: RA | G16: RC | T16: 12 | U16: 40005.11165 | V16: 0.4647222121
B17: flux au début | C17: =C5+C14 -> 45000 | D17: =C6 -> 42000 | E17: =D17-C17 -> -3000 | F17: =D17/C17-1 -> -0.06666666667 | G17: =LN(D17/C17) -> -0.06899287149 | I17: =form(F17) -> =D17/C17-1 | J17: =LN(D17/C17) | T17: 13 | U17: 40005.57638 | V17: 0.4647276107
B18: flux au milieu | C18: =C5+C14/2 -> 42500 | D18: =C6-C14/2 -> 39500 | E18: =D18-C18 -> -3000 | F18: =D18/C18-1 -> -0.07058823529 | G18: =LN(D18/C18) -> -0.07320340402 | I18: =D18/C18-1 | J18: =LN(D18/C18) | T18: 14 | U18: 40006.04111 | V18: 0.4647330093
B19: flux à la fin | C19: =C5 -> 40000 | D19: =C6-C14 -> 37000 | E19: =D19-C19 -> -3000 | F19: =D19/C19-1 -> -0.075 | G19: =LN(D19/C19) -> -0.07796154147 | I19: =D19/C19-1 | J19: =LN(D19/C19) | T19: 15 | U19: 40006.50585 | V19: 0.464738408
T20: 16 | U20: 40006.97059 | V20: 0.4647438067
B21: Flux de revenu | C21: 5000 | F21: Revenu de 5 000 distributé, donc hausse du revenu de 10 000 à 15 000 | T21: 17 | U21: 40007.43534 | V21: 0.4647492055
T22: 18 | U22: 40007.90009 | V22: 0.4647546043
C23: début | D23: fin | E23: valeur | F23: RA | G23: RG | T23: 19 | U23: 40008.36485 | V23: 0.4647600033
B24: flux au début | C24: =C5-C21 -> 35000 | D24: =C6 -> 42000 | E24: =D24-C24 -> 7000 | F24: =D24/C24-1 -> 0.2 | G24: =LN(D24/C24) -> 0.1823215568 | I24: =form(F24) -> =D24/C24-1 | J24: =LN(D24/C24) | T24: 20 | U24: 40008.82962 | V24: 0.4647654022
B25: flux au milieu | C25: =C5-C21/2 -> 37500 | D25: =C6+C21/2 -> 44500 | E25: =D25-C25 -> 7000 | F25: =D25/C25-1 -> 0.1866666667 | G25: =LN(D25/C25) -> 0.1711482562 | I25: =D25/C25-1 | J25: =LN(D25/C25) | T25: 21 | U25: 40009.29439 | V25: 0.4647708013
B26: flux à la fin | C26: =C5 -> 40000 | D26: =C6+C21 -> 47000 | E26: =D26-C26 -> 7000 | F26: =D26/C26-1 -> 0.175 | G26: =LN(D26/C26) -> 0.1612681476 | I26: =D26/C26-1 | J26: =LN(D26/C26) | T26: 22 | U26: 40009.75917 | V26: 0.4647762004
T27: 23 | U27: 40010.22395 | V27: 0.4647815996
A28: 3 | B28: Rentabilité multi périodes | T28: 24 | U28: 40010.68874 | V28: 0.4647869988
T29: 25 | U29: 40011.15353 | V29: 0.4647923981
C30: dates | D30: PORT 1 | T30: 26 | U30: 40011.61833 | V30: 0.4647977974
B31: T0 | C31: 2016-02-01 | D31: 100 | T31: 27 | U31: 40012.08313 | V31: 0.4648031969
B32: T1 | C32: 2016-03-01 | D32: 110 | T32: 28 | U32: 40012.54794 | V32: 0.4648085963
B33: T2 | C33: 2016-04-01 | D33: 100 | T33: 29 | U33: 40013.01275 | V33: 0.4648139959
T34: 30 | U34: 40013.47757 | V34: 0.4648193955
B35: taux arithmétique | C35: RA | T35: 31 | U35: 40013.9424 | V35: 0.4648247952
B36: T0 T1 | C36: =D32/D31-1 -> 0.1 | E36: =form(C36) -> =D32/D31-1 | T36: 32 | U36: 40014.40723 | V36: 0.4648301949
B37: T1 T2 | C37: =D33/D32-1 -> -0.09090909091 | E37: =D33/D32-1 | T37: 33 | U37: 40014.87206 | V37: 0.4648355947
B38: T0 T2 | C38: =D33/D31-1 -> 0 | E38: =D33/D31-1 | T38: 34 | U38: 40015.3369 | V38: 0.4648409945
T39: 35 | U39: 40015.80175 | V39: 0.4648463945
B40: Vérification de la multiplication | C40: =(1+C36)*(1+C37)-1 -> 0 | E40: =(1+C36)*(1+C37)-1 | T40: 36 | U40: 40016.2666 | V40: 0.4648517944
T41: 37 | U41: 40016.73146 | V41: 0.4648571945
B42: Taux continuie n fois par période | C42: RC | T42: 38 | U42: 40017.19632 | V42: 0.4648625946
B43: T0 T1 | C43: =LN(D32/D31) -> 0.0953101798 | E43: =form(C43) -> =LN(D32/D31) | T43: 39 | U43: 40017.66119 | V43: 0.4648679948
B44: T1 T2 | C44: =LN(D33/D32) -> -0.0953101798 | E44: =form(C44) -> =LN(D33/D32) | T44: 40 | U44: 40018.12606 | V44: 0.464873395
B45: T0 T2 | C45: =LN(D33/D31) -> 0 | E45: =form(C45) -> =LN(D33/D31) | T45: 41 | U45: 40018.59094 | V45: 0.4648787953
E46: =form(C46) ->  | T46: 42 | U46: 40019.05582 | V46: 0.4648841957
B47: Vérification de l'addition | C47: =C43+C44 -> 0 | E47: =form(C47) -> =C43+C44 | T47: 43 | U47: 40019.52071 | V47: 0.4648895961
T48: 44 | U48: 40019.98561 | V48: 0.4648949966
T49: 45 | U49: 40020.45051 | V49: 0.4649003971
A50: 4 | B50: Comparaison de portefeuilles | E50: Période proportionnelle soit jour semaine mois ou année - Pas d'annualisation | T50: 46 | U50: 40020.91542 | V50: 0.4649057977
T51: 47 | U51: 40021.38033 | V51: 0.4649111984
B52: Soit les valorisations suivantes de deux portefeuilles: | T52: 48 | U52: 40021.84524 | V52: 0.4649165991
T53: 49 | U53: 40022.31016 | V53: 0.4649219999
D54: PORT A | E54: PORT B | T54: 50 | U54: 40022.77509 | V54: 0.4649274008
C55: T0 | D55: 220 | E55: 200 | T55: 51 | U55: 40023.24003 | V55: 0.4649328017
C56: T1 | D56: 240 | E56: 250 | T56: 52 | U56: 40023.70496 | V56: 0.4649382027
C57: T2 | D57: 230 | E57: 210 | T57: 53 | U57: 40024.16991 | V57: 0.4649436038
T58: 54 | U58: 40024.63486 | V58: 0.4649490049
B59: Calculs de la performance | T59: 55 | U59: 40025.09981 | V59: 0.4649544061
D60: PORT A | J60: PORT B | T60: 56 | U60: 40025.56477 | V60: 0.4649598073
D61: RA | E61: Vér Addi | J61: RA | K61: Vér Addi | T61: 57 | U61: 40026.02974 | V61: 0.4649652086
C62: T0 T1 | D62: =(D56-D55)/D55 -> 0.09090909091 | E62: =1+D62 -> 1.090909091 | F62: =form(D62) -> =(D56-D55)/D55 | G62: =form(J62) -> =(E56-E55)/E55 | H62: =form(E62) -> =1+D62 | I62: =form(K62) -> =1+J62 | J62: =(E56-E55)/E55 -> 0.25 | K62: =1+J62 -> 1.25 | T62: 58 | U62: 40026.49471 | V62: 0.46497061
C63: T1 T2 | D63: =(D57-D56)/D56 -> -0.04166666667 | E63: =1+D63 -> 0.9583333333 | F63: =form(D63) -> =(D57-D56)/D56 | G63: =form(J63) -> =(E57-E56)/E56 | H63: =1+D63 | I63: =1+J63 | J63: =(E57-E56)/E56 -> -0.16 | K63: =1+J63 -> 0.84 | T63: 59 | U63: 40026.95968 | V63: 0.4649760114
C64: T0 T2 | D64: =(D57-D55)/D55 -> 0.04545454545 | E64: =E62*E63-1 -> 0.04545454545 | F64: =form(D64) -> =(D57-D55)/D55 | G64: =form(J64) -> =(E57-E55)/E55 | H64: =E62*E63-1 | I64: =K62*K63-1 | J64: =(E57-E55)/E55 -> 0.05 | K64: =K62*K63-1 -> 0.05 | T64: 60 | U64: 40027.42466 | V64: 0.4649814129
D65: RC | E65: =E64-D64 -> 0 | H65: =E64-D64 | I65: =K64-J64 | J65: RC | K65: =K64-J64 -> 0 | T65: 61 | U65: 40027.88965 | V65: 0.4649868144
C66: T0 T1 | D66: =LN(D56/D55) -> 0.08701137699 | E66: =D66 -> 0.08701137699 | F66: =form(D66) -> =LN(D56/D55) | G66: =form(J66) -> =LN(E56/E55) | H66: =D66 | I66: =J66 | J66: =LN(E56/E55) -> 0.2231435513 | K66: =J66 -> 0.2231435513 | T66: 62 | U66: 40028.35464 | V66: 0.464992216
C67: T1 T2 | D67: =LN(D57/D56) -> -0.04255961442 | E67: =D67 -> -0.04255961442 | F67: =form(D67) -> =LN(D57/D56) | G67: =form(J67) -> =LN(E57/E56) | H67: =D67 | I67: =J67 | J67: =LN(E57/E56) -> -0.1743533871 | K67: =J67 -> -0.1743533871 | T67: 63 | U67: 40028.81964 | V67: 0.4649976177
C68: T0 T2 | D68: =LN(D57/D55) -> 0.04445176257 | E68: =E66+E67 -> 0.04445176257 | F68: =form(D68) -> =LN(D57/D55) | G68: =form(J68) -> =LN(E57/E55) | H68: =E66+E67 | I68: =K66+K67 | J68: =LN(E57/E55) -> 0.04879016417 | K68: =K66+K67 -> 0.04879016417 | T68: 64 | U68: 40029.28464 | V68: 0.4650030195
E69: =E68-D68 -> 0 | K69: =K68-J68 -> -8.326672685e-17 | T69: 65 | U69: 40029.74965 | V69: 0.4650084213
A70: 5 | B70: Comparaison de portefeuilles | D70: Annualisation des taux | T70: 66 | U70: 40030.21467 | V70: 0.4650138231
T71: 67 | U71: 40030.67968 | V71: =U70*$C$10*1/$S$5 -> 0.4650192251
B72: Soit les valorisations suivantes de deux portefeuilles: | T72: 68 | U72: =V72+U71 -> 40031.14471 | V72: 0.4650246271
T73: 69 | U73: 40031.60974 | V73: 0.4650300291
D74: PORT A | H74: Taux géo | I74: Taux Arithmétique recomposés | M74: PORT B | T74: 70 | U74: 40032.07477 | V74: 0.4650354312
B75: T0 | C75: 2016-02-01 | D75: 220 | H75: =D75*E86 -> 64.49026973 | I75: =E82*D82*D75 -> 30 | M75: 200 | T75: 71 | U75: 40032.53982 | V75: 0.4650408334
B76: T1 | C76: 2016-08-01 | D76: 250 | H76: =D75+H75 -> 284.4902697 | I76: =240*E82*D82 -> 32.72727273 | M76: 250 | T76: 72 | U76: 40033.00486 | V76: 0.4650462356
B77: T2 | C77: 2017-02-01 | D77: 300 | I77: =D75+I75+I76 -> 282.7272727 | M77: 210 | T77: 73 | U77: 40033.46991 | V77: 0.465051638
T78: 74 | U78: 40033.93497 | V78: 0.4650570403
B79: Performance annualisée | T79: 75 | U79: 40034.40003 | V79: 0.4650624428
B80: base | C80: Durées | D80: Durées | E80: PORT A | F80: Vérication sur l'addition | M80: PORT B | T80: 76 | U80: 40034.8651 | V80: 0.4650678452
B81: =C77-C75 -> 366 | C81: jours | D81: an | E81: RA - Annuel | M81: RA Annuel | T81: 77 | U81: 40035.33017 | V81: 0.4650732478
B82: T0 T1 | C82: =C76-C75 -> 182 | D82: =C82/$B$81 -> 0.4972677596 | E82: =(D76/D75-1)/D82 -> 0.2742257742 | F82: =1+E82*D82 -> 1.136363636 | I82: =form(E82) -> =(D76/D75-1)/D82 | J82: =form(M82) -> =(M76/M75-1)/D82 | M82: =(M76/M75-1)/D82 -> 0.5027472527 | N82: =1+M82*D82 -> 1.25 | T82: 78 | U82: 40035.79525 | V82: 0.4650786504
B83: T1 T2 | C83: =C77-C76 -> 184 | D83: =C83/$B$81 -> 0.5027322404 | E83: =(D77/D76-1)/D83 -> 0.397826087 | F83: =1+E83*D83 -> 1.2 | I83: =(D77/D76-1)/D83 | J83: =form(M83) -> =(M77/M76-1)/D83 | M83: =(M77/M76-1)/D83 -> -0.3182608696 | N83: =1+M83*D83 -> 0.84 | T83: 79 | U83: 40036.26034 | V83: 0.4650840531
B84: T0 T2 | C84: =B81 -> 366 | D84: =C84/$B$81 -> 1 | E84: =(D77/D75-1)/D84 -> 0.3636363636 | F84: =F82*F83-1 -> 0.3636363636 | I84: =(D77/D75-1)/D84 | J84: =form(M84) -> =(M77/M75-1)/D84 | M84: =(M77/M75-1)/D84 -> 0.05 | N84: =N82*N83-1 -> 0.05 | T84: 80 | U84: 40036.72543 | V84: 0.4650894558
E85: RG- 2 périodes | G85: RC continu n périodes | M85: RG Annuel | T85: 81 | U85: 40037.19052 | V85: 0.4650948587
B86: T0 T1 | C86: =C82 -> 182 | D86: 0.4972677596 | E86: =POWER(D76/D75,1/D86)-1 -> 0.2931375897 | F86: =(1+E86)^D86 -> 1.136363636 | G86: =LN(D76/D75) -> 0.1278333715 | I86: =form(E86) -> =PUISSANCE(D76/D75;1/D86)-1 | J86: =form(M86) -> =PUISSANCE(M76/M75;1/D86)-1 | M86: =POWER(M76/M75,1/D86)-1 -> 0.5663361498 | N86: =(1+M86)^D86 -> 1.25 | T86: 82 | U86: 40037.65562 | V86: 0.4651002615
B87: T1 T2 | C87: 184 | D87: 0.5027322404 | E87: =POWER(D77/D76,1/D87)-1 -> 0.4371490971 | F87: =(1+E87)^D87 -> 1.2 | G87: =LN(D77/D76) -> 0.1823215568 | I87: =PUISSANCE(D77/D76;1/D87)-1 | J87: =form(M87) -> =PUISSANCE(M77/M76;1/D87)-1 | M87: =POWER(M77/M76,1/D87)-1 -> -0.2930615174 | N87: =(1+M87)^D87 -> 0.84 | T87: 83 | U87: 40038.12073 | V87: 0.4651056645
B88: T0 T2 | C88: =B81 -> 366 | D88: 1 | E88: =POWER(D77/D75,1/D88)-1 -> 0.3636363636 | F88: =F86*F87-1 -> 0.3636363636 | G88: =EXP((G86+G87))*D75 -> 300 | I88: =PUISSANCE(D77/D75;1/D88)-1 | J88: =form(M88) -> =PUISSANCE(M77/M75;1/D88)-1 | M88: =POWER(M77/M75,1/D88)-1 -> 0.05 | N88: =N86*N87-1 -> 0.05 | T88: 84 | U88: 40038.58584 | V88: 0.4651110675
E89: =(1+E82*2)^1/2 -> 0.7742257742 | M89: =(1+E89/2)^2 -> 1.924082162 | T89: 85 | U89: 40039.05095 | V89: 0.4651164705
B90: Calcul des taux moyens | C90: arithmétique approx | E90: =(E82+E83)/2 -> 0.3360259306 | F90: =(1+E90)*D75 -> 293.9257047 | I90: =form(E90) -> =(E82+E83)/2 | J90: =form(M90) -> =(M82+M83)/2 | M90: =(M82+M83)/2 -> 0.09224319159 | T90: 86 | U90: 40039.51608 | V90: 0.4651218736
C91: Composé 2 périodes | E91: =SQRT((1+E86)*(1+E87))-1 -> 0.3632430156 | F91: =(1+E91)*D75 -> 299.9134634 | I91: =form(E91) -> =RACINE((1+E86)*(1+E87))-1 | J91: =form(M91) -> =RACINE((1+M86)*(1+M87))-1 | M91: =SQRT((1+M86)*(1+M87))-1 -> 0.0522848003 | T91: 87 | U91: 40039.9812 | V91: 0.4651272768
T92: 88 | U92: 40040.44634 | V92: 0.4651326801
B93: Calcul TI avec taux Comp | C93: Verif | E93: =D75*(D76/D75)^(1/D86) -> 284.4902697 | F93: =E93/D75-1 -> 0.2931375897 | T93: 89 | U93: 40040.91147 | V93: 0.4651380834
B94: On recapitalise le taux arithmétique sur deux périodes | T94: 90 | U94: 40041.37662 | V94: 0.4651434867
B95: Exercice avec périodes identiques | T95: 91 | U95: 40041.84177 | V95: 0.4651488902
T96: 92 | U96: 40042.30692 | V96: 0.4651542937
D97: PORT A | E97: PORT B | T97: 93 | U97: 40042.77208 | V97: 0.4651596972
B98: T0 | C98: 2016-02-01 | D98: 220 | E98: 200 | T98: 94 | U98: 40043.23725 | V98: 0.4651651009
B99: T1 | C99: 2016-08-01 | D99: 340 | E99: 250 | T99: 95 | U99: 40043.70242 | V99: 0.4651705045
B100: T2 | C100: 2017-02-01 | D100: 440 | E100: 210 | T100: 96 | U100: 40044.16759 | V100: 0.4651759083
T101: 97 | U101: 40044.63277 | V101: 0.4651813121
T102: 98 | U102: 40045.09796 | V102: 0.465186716
B103: Performance annualisée | T103: 99 | U103: 40045.56315 | V103: 0.4651921199
B104: base | C104: Durées | D104: Durées | E104: PORT A | F104: Vérication sur l'addition | L104: PORT B | T104: 100 | U104: 40046.02835 | V104: 0.4651975239
B105: =C100-C98 -> 366 | C105: jours | D105: an | E105: RA | L105: RA | T105: 101 | U105: 40046.49355 | V105: 0.465202928
B106: T0 T1 | C106: =C99-C98 -> 182 | D106: =C106/$B$105 -> 0.4972677596 | E106: =(D99/D98-1)/D106 -> 1.096903097 | F106: =1+E106*D106 -> 1.545454545 | I106: =form(E106) -> =(D99/D98-1)/D106 | J106: =form(L106) -> =(E99/E98-1)/D106 | L106: =(E99/E98-1)/D106 -> 0.5027472527 | M106: =1+L106*D106 -> 1.25 | T106: 102 | U106: 40046.95876 | V106: 0.4652083321
B107: T1 T2 | C107: =C100-C99 -> 184 | D107: =C107/$B$105 -> 0.5027322404 | E107: =(D100/D99-1)/D107 -> 0.5850383632 | F107: =1+E107*D107 -> 1.294117647 | I107: =(D100/D99-1)/D107 | J107: =form(L107) -> =(E100/E99-1)/D107 | L107: =(E100/E99-1)/D107 -> -0.3182608696 | M107: =1+L107*D107 -> 0.84 | T107: 103 | U107: 40047.42397 | V107: 0.4652137363
B108: T0 T2 | C108: =C100-C98 -> 366 | D108: =C108/$B$105 -> 1 | E108: =(D100/D98-1)/D108 -> 1 | F108: =F106*F107-1 -> 1 | I108: =(D100/D98-1)/D108 | J108: =form(L108) -> =(E100/E98-1)/D108 | L108: =(E100/E98-1)/D108 -> 0.05 | M108: =M106*M107-1 -> 0.05 | T108: 104 | U108: 40047.88919 | V108: 0.4652191405
E109: RG | L109: RG | T109: 105 | U109: 40048.35442 | V109: 0.4652245449
B110: T0 T1 | C110: =C106 -> 182 | D110: 0.4972677596 | E110: =POWER(D99/D98,1/D110)-1 -> 1.399882691 | F110: =(1+E110)^D110 -> 1.545454545 | I110: =form(E110) -> =PUISSANCE(D99/D98;1/D110)-1 | J110: =form(L110) -> =PUISSANCE(E99/E98;1/D110)-1 | L110: =POWER(E99/E98,1/D110)-1 -> 0.5663361498 | M110: =(1+L110)^D110 -> 1.25 | T110: 106 | U110: 40048.81965 | V110: 0.4652299492
B111: T1 T2 | C111: 184 | D111: 0.5027322404 | E111: =POWER(D100/D99,1/D111)-1 -> 0.670053611 | F111: =(1+E111)^D111 -> 1.294117647 | I111: =PUISSANCE(D100/D99;1/D111)-1 | J111: =form(L111) -> =PUISSANCE(E100/E99;1/D111)-1 | L111: =POWER(E100/E99,1/D111)-1 -> -0.2930615174 | M111: =(1+L111)^D111 -> 0.84 | T111: 107 | U111: 40049.28488 | V111: 0.4652353537
B112: T0 T2 | C112: 366 | D112: 1 | E112: =POWER(D100/D98,1/D112)-1 -> 1 | F112: =F110*F111-1 -> 1 | I112: =PUISSANCE(D100/D98;1/D112)-1 | J112: =form(L112) -> =PUISSANCE(E100/E98;1/D112)-1 | L112: =POWER(E100/E98,1/D112)-1 -> 0.05 | M112: =M110*M111-1 -> 0.05 | T112: 108 | U112: 40049.75012 | V112: 0.4652407582
T113: 109 | U113: 40050.21537 | V113: 0.4652461627
B114: Calcul des taux moyens | C114: arithmétique | E114: =(E106+E107)/2 -> 0.84097073 | I114: =form(E114) -> =(E106+E107)/2 | J114: =form(L114) -> =(L106+L107)/2 | L114: =(L106+L107)/2 -> 0.09224319159 | T114: 110 | U114: 40050.68062 | V114: 0.4652515674
C115: Composé | E115: =SQRT((1+E110)*(1+E111))-1 -> 1.001982206 | I115: =RACINE((1+E110)*(1+E111))-1 | J115: =form(L115) -> =RACINE((1+L110)*(1+L111))-1 | L115: =SQRT((1+L110)*(1+L111))-1 -> 0.0522848003 | T115: 111 | U115: 40051.14588 | V115: 0.4652569721
C116: écart | E116: =E114-E108 -> -0.15902927 | I116: =E114-E108 | J116: =form(L116) -> =L114-L108 | L116: =L114-L108 -> 0.04224319159 | T116: 112 | U116: 40051.61114 | V116: 0.4652623768
C117: écart calculé r1 r2 / 4 | E117: =E106*E107/4 -> 0.1604325981 | I117: =E106*E107/4 | J117: =form(L117) -> =L106*L107/4 | L117: =L106*L107/4 -> -0.04000119446 | T117: 113 | U117: 40052.07641 | V117: 0.4652677816
T118: 114 | U118: 40052.54168 | V118: 0.4652731865
E119: =E114+E117 -> 1.001403328 | T119: 115 | U119: 40053.00696 | V119: 0.4652785915
T120: 116 | U120: 40053.47225 | V120: 0.4652839965
T121: 117 | U121: 40053.93753 | V121: 0.4652894015
T122: 118 | U122: 40054.40283 | V122: 0.4652948067
T123: 119 | U123: 40054.86813 | V123: 0.4653002118
T124: 120 | U124: 40055.33344 | V124: 0.4653056171
T125: 121 | U125: 40055.79875 | V125: 0.4653110224
T126: 122 | U126: 40056.26406 | V126: 0.4653164278
T127: 123 | U127: 40056.72938 | V127: 0.4653218332
T128: 124 | U128: 40057.19471 | V128: 0.4653272388
T129: 125 | U129: 40057.66004 | V129: 0.4653326443
T130: 126 | U130: 40058.12538 | V130: 0.46533805
T131: 127 | U131: 40058.59073 | V131: 0.4653434557
T132: 128 | U132: 40059.05607 | V132: 0.4653488614
T133: 129 | U133: 40059.52143 | V133: 0.4653542672
T134: 130 | U134: 40059.98679 | V134: 0.4653596731
T135: 131 | U135: 40060.45215 | V135: =U134*$C$10*1/$S$5 -> 0.4653650791
T136: 132 | U136: =V136+U135 -> 40060.91752 | V136: 0.4653704851
T137: 133 | U137: 40061.3829 | V137: 0.4653758911
T138: 134 | U138: 40061.84828 | V138: 0.4653812973
T139: 135 | U139: 40062.31367 | V139: 0.4653867035
T140: 136 | U140: 40062.77906 | V140: 0.4653921097
T141: 137 | U141: 40063.24446 | V141: 0.4653975161
T142: 138 | U142: 40063.70986 | V142: 0.4654029224
T143: 139 | U143: 40064.17527 | V143: 0.4654083289
T144: 140 | U144: 40064.64068 | V144: 0.4654137354
T145: 141 | U145: 40065.1061 | V145: 0.465419142
T146: 142 | U146: 40065.57153 | V146: 0.4654245486
T147: 143 | U147: 40066.03696 | V147: 0.4654299553
T148: 144 | U148: 40066.50239 | V148: 0.4654353621
T149: 145 | U149: 40066.96783 | V149: 0.4654407689
T150: 146 | U150: 40067.43328 | V150: 0.4654461758
T151: 147 | U151: 40067.89873 | V151: 0.4654515827
T152: 148 | U152: 40068.36419 | V152: 0.4654569898
T153: 149 | U153: 40068.82965 | V153: 0.4654623968
T154: 150 | U154: 40069.29512 | V154: 0.465467804
T155: 151 | U155: 40069.76059 | V155: 0.4654732112
T156: 152 | U156: 40070.22607 | V156: 0.4654786184
T157: 153 | U157: 40070.69155 | V157: 0.4654840258
T158: 154 | U158: 40071.15704 | V158: 0.4654894332
T159: 155 | U159: 40071.62254 | V159: 0.4654948406
T160: 156 | U160: 40072.08804 | V160: 0.4655002481
T161: 157 | U161: 40072.55354 | V161: 0.4655056557
T162: 158 | U162: 40073.01905 | V162: 0.4655110634
T163: 159 | U163: 40073.48457 | V163: 0.4655164711
T164: 160 | U164: 40073.95009 | V164: 0.4655218788
T165: 161 | U165: 40074.41562 | V165: 0.4655272867
T166: 162 | U166: 40074.88115 | V166: 0.4655326945
T167: 163 | U167: 40075.34669 | V167: 0.4655381025
T168: 164 | U168: 40075.81223 | V168: 0.4655435105
T169: 165 | U169: 40076.27778 | V169: 0.4655489186
T170: 166 | U170: 40076.74334 | V170: 0.4655543268
T171: 167 | U171: 40077.2089 | V171: 0.465559735
T172: 168 | U172: 40077.67446 | V172: 0.4655651432
T173: 169 | U173: 40078.14003 | V173: 0.4655705516
T174: 170 | U174: 40078.60561 | V174: 0.46557596
T175: 171 | U175: 40079.07119 | V175: 0.4655813684
T176: 172 | U176: 40079.53678 | V176: 0.4655867769
T177: 173 | U177: 40080.00237 | V177: 0.4655921855
T178: 174 | U178: 40080.46797 | V178: 0.4655975942
T179: 175 | U179: 40080.93357 | V179: 0.4656030029
T180: 176 | U180: 40081.39918 | V180: 0.4656084117
T181: 177 | U181: 40081.86479 | V181: 0.4656138205
T182: 178 | U182: 40082.33041 | V182: 0.4656192294
T183: 179 | U183: 40082.79604 | V183: 0.4656246384
T184: 180 | U184: 40083.26167 | V184: 0.4656300474
T185: 181 | U185: 40083.7273 | V185: 0.4656354565
T186: 182 | U186: 40084.19294 | V186: 0.4656408656
T187: 183 | U187: 40084.65859 | V187: 0.4656462748
T188: 184 | U188: 40085.12424 | V188: 0.4656516841
T189: 185 | U189: 40085.5899 | V189: 0.4656570934
T190: 186 | U190: 40086.05556 | V190: 0.4656625028
T191: 187 | U191: 40086.52123 | V191: 0.4656679123
T192: 188 | U192: 40086.9869 | V192: 0.4656733218
T193: 189 | U193: 40087.45258 | V193: 0.4656787314
T194: 190 | U194: 40087.91826 | V194: 0.4656841411
T195: 191 | U195: 40088.38395 | V195: 0.4656895508
T196: 192 | U196: 40088.84965 | V196: 0.4656949606
T197: 193 | U197: 40089.31535 | V197: 0.4657003704
T198: 194 | U198: 40089.78105 | V198: 0.4657057803
T199: 195 | U199: 40090.24677 | V199: =U198*$C$10*1/$S$5 -> 0.4657111903
T200: 196 | U200: =V200+U199 -> 40090.71248 | V200: 0.4657166003
T201: 197 | U201: 40091.1782 | V201: 0.4657220104
... 4003 more rows

Sheet Tri
A1: METHODE TRI
A3: 6 | B3: Calcul du TRI
C5: FLUX
C6: 2016-06-01 | D6: -12000 | E6: 1 | F6: =D6 -> -12000 | H6: =form(F6) -> =D6
C7: =EDATE(C6,1) -> 2016-07-01 | D7: 200 | E7: 2 | F7: =F6*(1+$F$12)+D7 -> -11950.62754 | H7: =form(F7) -> =F6*(1+$F$12)+D7
C8: =EDATE(C7,1) -> 2016-08-01 | D8: 300 | E8: 3 | F8: =F7*(1+$F$12)+D8 -> -11800.63535 | H8: =form(F8) -> =F7*(1+$F$12)+D8
C9: 2016-09-01 | D9: -100 | E9: 4 | F9: =F8*(1+$F$12)+D9 -> -12048.7604 | H9: =form(F9) -> =F8*(1+$F$12)+D9
C10: 2016-10-01 | D10: 12200 | E10: 5 | F10: =F9*(1+$F$12) -> -12200 | H10: =form(F10) -> =F9*(1+$F$12)
C12: mode mois | D12: fonction TRI | F12: =IRR(D6:D10) -> 0.01255229514 | H12: =form(F12) -> =TRI(D6:D10)
D13: annualisation proportionnelle | F13: =F12*12 -> 0.1506275417 | H13: =form(F13) -> =F12*12
D14: annualisation actuarielle | F14: =POWER(1+F12,12)-1 -> 0.1614741511 | H14: =form(F14) -> =PUISSANCE(1+F12;12)-1
C15: mode jour | D15: Tripaiement | F15: =XIRR(D6:D10,C6:C10) -> 0.1610170186 | H15: =form(F15) -> =TRI.PAIEMENTS(D6:D10;C6:C10)
B17: Vérications | C17: dates | D17: FLUX | E17: durées | F17: facteur
C18: =C6 -> 2016-06-01 | D18: -12000 | E18: 0 | F18: =POWER(1+$F$12,-E18) -> 1 | H18: =form(F18) -> =PUISSANCE(1+$F$12;-E18)
C19: 2016-07-01 | D19: 200 | E19: 1 | F19: =POWER(1+$F$12,-E19) -> 0.9876033117 | H19: =PUISSANCE(1+$F$12;-E19)
C20: 2016-08-01 | D20: 300 | E20: 2 | F20: =POWER(1+$F$12,-E20) -> 0.9753603014 | H20: =PUISSANCE(1+$F$12;-E20)
C21: 2016-09-01 | D21: -100 | E21: 3 | F21: =POWER(1+$F$12,-E21) -> 0.9632690638 | H21: =PUISSANCE(1+$F$12;-E21)
C22: 2016-10-01 | D22: 12200 | E22: 4 | F22: =POWER(1+$F$12,-E22) -> 0.9513277175 | H22: =PUISSANCE(1+$F$12;-E22)
F23: =SUMPRODUCT(D18:D22,F18:F22) -> -7.009657566e-08 | H23: =SOMMEPROD(D18:D22;F18:F22)
B25: Vérications | C25: dates | D25: FLUX | E25: durées | F25: facteur
C26: =C6 -> 2016-06-01 | D26: -12000 | E26: 0 | F26: =POWER(1+$F$15,-E26) -> 1 | H26: =form(F26) -> =PUISSANCE(1+$F$15;-E26)
C27: 2016-07-01 | D27: 200 | E27: =(C27-$C$26)/365 -> 0.08219178082 | F27: =POWER(1+$F$15,-E27) -> 0.9878040471 | H27: =PUISSANCE(1+$F$15;-E27)
C28: 2016-08-01 | D28: 300 | E28: =(C28-$C$26)/365 -> 0.1671232877 | F28: =POWER(1+$F$15,-E28) -> 0.9753578022 | H28: =PUISSANCE(1+$F$15;-E28)
C29: 2016-09-01 | D29: -100 | E29: =(C29-$C$26)/365 -> 0.2520547945 | F29: =POWER(1+$F$15,-E29) -> 0.9630683788 | H29: =PUISSANCE(1+$F$15;-E29)
C30: 2016-10-01 | D30: 12200 | E30: =(C30-$C$26)/365 -> 0.3342465753 | F30: =POWER(1+$F$15,-E30) -> 0.9513228423 | H30: =PUISSANCE(1+$F$15;-E30)
F31: =SUMPRODUCT(D26:D30,F26:F30) -> -1.21304729e-05 | H31: =SOMMEPROD(D26:D30;F26:F30)
B33: Remarque | C33: dates | D33: FLUX | E33: durées | F33: facteur
C34: =C18 -> 2016-06-01 | D34: =D18 -> -12000 | E34: -5 | F34: =POWER(1+$F$12,-E34) -> 1.064356979 | H34: =form(F34) -> =PUISSANCE(1+$F$12;-E34)
C35: =C19 -> 2016-07-01 | D35: 200 | E35: -4 | F35: =POWER(1+$F$12,-E35) -> 1.051162477 | H35: =PUISSANCE(1+$F$12;-E35)
C36: 2016-08-01 | D36: 300 | E36: -3 | F36: =POWER(1+$F$12,-E36) -> 1.038131544 | H36: =PUISSANCE(1+$F$12;-E36)
C37: 2016-09-01 | D37: -100 | E37: -2 | F37: =POWER(1+$F$12,-E37) -> 1.02526215 | H37: =PUISSANCE(1+$F$12;-E37)
C38: 2016-10-01 | D38: 12200 | E38: -1 | F38: =POWER(1+$F$12,-E38) -> 1.012552295 | H38: =PUISSANCE(1+$F$12;-E38)
F39: =SUMPRODUCT(D34:D38,F34:F38) -> -7.460948837e-08 | H39: =SOMMEPROD(D34:D38;F34:F38)
B41: Vérications | C41: dates | D41: FLUX | E41: durées | F41: facteur
C42: =C34 -> 2016-06-01 | D42: =D34 -> -12000 | E42: =-E30 -> -0.3342465753 | F42: =POWER(1+$F$15,-E42) -> 1.051167864 | H42: =form(F42) -> =PUISSANCE(1+$F$15;-E42)
C43: =C35 -> 2016-07-01 | D43: 200 | E43: =-E29 -> -0.2520547945 | F43: =POWER(1+$F$15,-E43) -> 1.03834787 | H43: =PUISSANCE(1+$F$15;-E43)
C44: =C36 -> 2016-08-01 | D44: 300 | E44: =-E28 -> -0.1671232877 | F44: =POWER(1+$F$15,-E44) -> 1.025264777 | H44: =PUISSANCE(1+$F$15;-E44)
C45: =C37 -> 2016-09-01 | D45: -100 | E45: =-E27 -> -0.08219178082 | F45: =POWER(1+$F$15,-E45) -> 1.012346531 | H45: =PUISSANCE(1+$F$15;-E45)
C46: =C38 -> 2016-10-01 | D46: 12200 | E46: =-E26 -> 0 | F46: =POWER(1+$F$15,-E46) -> 1 | H46: =PUISSANCE(1+$F$15;-E46)
F47: =SUMPRODUCT(D42:D46,F42:F46) -> -1.275116301e-05 | H47: =SOMMEPROD(D42:D46;F42:F46)

Sheet Twrr
A1: METHODES TWRR ET MWRR
A3: 9 | B3: Calcul de rentabilité TWRR
C5: Mois | D5: Rendement
B6: =(1+D6) -> 1.08 | C6: 1 | D6: 0.08 | E6: =1+D6 -> 1.08 | G6: T1 | H6: T2 | I6: T3 | J6: T4
B7: =(1+D7) -> 1.12 | C7: 2 | D7: 0.12 | E7: =1+D7 -> 1.12 | F7: 1 | G7: 0.08 | H7: 0.12 | I7: -0.04 | J7: -0.06666666667
B8: 0.96 | C8: 3 | D8: -0.04 | E8: 0.96 | F8: 2 | G8: -0.04 | H8: -0.06666666667 | I8: -0.1266666667 | J8: -0.1644444444
B9: 1.16 | C9: 4 | D9: 0.16 | E9: 1.16 | F9: 3 | G9: 0.08 | H9: 0.08 | I9: 0.08 | J9: 0.08
B10: 0.92 | C10: 5 | D10: -0.08 | E10: 0.92
B11: 1.12 | C11: 6 | D11: 0.12 | E11: 1.12
B12: 1.04 | C12: 7 | D12: 0.04 | E12: 1.04
B13: 0.92 | C13: 8 | D13: -0.08 | E13: 0.92
B14: =PRODUCT(B6:B13)-1 -> 0.3279998228 | E14: =PRODUCT(E6:E13)-1 -> 0.3279998228
C16: =PRODUCT(1+D6:D13)-1 -> 0.3279998228 | D16: pour 8 mois | F16: =PRODUCT(1+D6:D13) -> 1.327999823
C17: =(1+C16)^(12/8)-1 -> 0.530372051 | D17: pour 1 an
A20: 10 | B20: Méthodes TWRR et MWRR
E22: Dietz
B23: valeur initiale | C23: 100 | E23: Rendements
B24: valeur à 60 jours | C24: 95 | E24: 2 mois | F24: =C24/C23 -> 0.95
B25: rachat à 60 jours | C25: 50 | E25: 1 mois | F25: =C27/C26 -> 1.333333333
B26: valeur à 60 jours | C26: =C24-C25 -> 45 | E26: 3 mois | F26: =F24*F25 -> 1.266666667
B27: valeur à 90 jours | C27: 60 | E27: TWRR=Dietz | F27: =F26-1 -> 0.2666666667
B28: TRI | E28: 1 an | F28: =F26^(4)-1 -> 1.574241975
B29: FLUX
B30: 0 jour | C30: =-C23 -> -100 | E30: Dietz modifié
B31: 30 jours | C31: 0 | E31: montants investis | F31: durée mois
B32: 60 jours | C32: =C25 -> 50 | E32: =C23 -> 100 | F32: 2
B33: 90 jours | C33: =C27 -> 60 | E33: 45 | F33: 1
B34: MWRR=TRI | C34: =IRR(C30:C33) -> 0.03822433997
B35: 3 mois | C35: =(1+C34)^3-1 -> 0.11911217 | E35: 100 | F35: 3
B36: 1 an | C36: =(1+C34)^12-1 -> 0.5685359405 | E36: -50 | F36: 1
E37: numérateur | F37: =C27-C23+C25 -> 10
E38: dénominateur | F38: =E35+E36*F36/F35 -> 83.33333333
F39: =F37/F38 -> 0.12
A41: 11
A43: date | B43: valeur début de mois | C43: valeur en fin de mois | D43: Retrait (+) / apport (-) en | G43: Contrôles | I43: FLUX
A45: 2016-01-01 | B45: 10000 | C45: 11200 | F45: =C45/B45-1 -> 0.12 | I45: =-B45 -> -10000
A46: 2016-02-01 | B46: 12200 | C46: 14274 | D46: -1000 | F46: 0.17 | G46: =B46-C45+D46 -> 0 | I46: =D46 -> -1000
A47: 2016-03-01 | B47: 16074 | C47: 17788.08 | D47: -1800 | F47: 0.1066368048 | G47: 0 | I47: -1800
A48: 2016-04-01 | B48: 14288.08 | C48: 12573.51 | D48: 3500 | F48: -0.120000028 | G48: 0 | I48: 3500
A49: 2016-05-01 | B49: 13873.51 | C49: 14567.19 | D49: -1300 | F49: 0.05000032436 | G49: 0 | I49: -1300
A50: 2016-06-01 | B50: 13567.19 | C50: 15330.92 | D50: 1000 | F50: 0.1299996536 | G50: 0 | I50: 1000
A51: 2016-07-01 | B51: 16230.92 | C51: 16717.85 | D51: -900 | F51: 0.03000014787 | G51: 0 | I51: -900
A52: 2016-08-01 | B52: 14717.85 | C52: 16042.45 | D52: 2000 | F52: 0.08999955836 | G52: 1.818989404e-12 | I52: 2000
A53: 2016-09-01 | B53: 16842.45 | C53: 15158.21 | D53: -800 | F53: -0.09999970313 | G53: 0 | I53: -800
A54: 2016-10-01 | B54: 14758.21 | C54: 13725.13 | D54: 400 | F54: -0.07000035912 | G54: 0 | I54: 400
A55: 2016-11-01 | B55: 14025.13 | C55: 14305.64 | D55: -300 | F55: 0.02000052762 | G55: 0 | I55: -300
A56: 2016-12-01 | B56: 13105.64 | C56: 14416.2 | D56: 1200 | F56: 0.09999969479 | G56: 0 | I56: 1200
A57: 2017-01-01 | I57: =C56 -> 14416.2
B58: rentabilité arithmétique | D58: =F58 -> 0.5266366211 | F58: =SUM(F45:F56) -> 0.5266366211
B59: TWRR | D59: =F59 -> 0.5963988268 | F59: =PRODUCT(1+F45:F56)-1 -> 0.5963988268
F60: TRI
F61: =IRR(I45:I57) -> 0.04241404632
F62: =F61*12 -> 0.5089685558
B63: MWRR | D63: =F63 -> 0.6462017434 | F63: =(1+F61)^12-1 -> 0.6462017434
F64: =XIRR(I45:I57,A45:A57) -> 0.6440137565

Sheet Dietz
A1: METHODE DE DIETZ
A3: 7 | B3: Méthode de Dietz
B5: FLUX | H5: PORTEFEUILLE | J5: Vdébut | L5: Vdébut
D6: Action | E6: Quantités | F6: Prix | G6: Flux | H6: Quant | I6: Prix Déb | J6: Position Nette | K6: Prix Fin | L6: valorisation
B7: 2016-01-01 | C7: Achat | D7: A | E7: 1000 | F7: 9 | G7: =E7*F7 -> 9000 | H7: =E7 -> 1000 | I7: 9 | J7: 9000 | K7: =F11 -> 9.5 | L7: =H7*K7 -> 9500
C8: Achat | D8: B | E8: 1000 | F8: 6 | G8: =E8*F8 -> 6000 | H8: 1000 | I8: 6 | J8: 6000 | K8: =F12 -> 7 | L8: =H8*K8 -> 7000
G9: =G7+G8 -> 15000 | J9: =J7+J8 -> 15000 | L9: =L7+L8 -> 16500
B11: 2016-07-01 | C11: Achat | D11: A | E11: 500 | F11: 9.5 | G11: =E11*F11 -> 4750 | H11: =E7+E11 -> 1500 | I11: =F11 -> 9.5 | J11: =H11*I11 -> 14250 | K11: =F15 -> 10 | L11: =H11*K11 -> 15000
C12: Achat | D12: B | E12: 500 | F12: 7 | G12: =E12*F12 -> 3500 | H12: =E8+E12 -> 1500 | I12: =F12 -> 7 | J12: =H12*I12 -> 10500 | K12: =F16 -> 7.3 | L12: =H12*K12 -> 10950
G13: =G11+G12 -> 8250 | J13: =J11+J12 -> 24750 | L13: =L11+L12 -> 25950
B15: 2017-01-01 | C15: Achat | D15: A | E15: 100 | F15: 10 | G15: =E15*F15 -> 1000 | H15: =H11+E15 -> 1600 | I15: =K11 -> 10 | J15: =H15*I15 -> 16000 | K15: 10.1 | L15: =H15*K15 -> 16160 | M15: 2017-07-01
C16: Vente | D16: B | E16: -200 | F16: 7.3 | G16: =E16*F16 -> -1460 | H16: =H12+E16 -> 1300 | I16: =K12 -> 7.3 | J16: =H16*I16 -> 9490 | K16: 7.5 | L16: =H16*K16 -> 9750 | M16: 2017-07-01
G17: =G15+G16 -> -460 | J17: =J15+J16 -> 25490 | L17: =L15+L16 -> 25910 | M17: 2017-07-01
B19: METHODE DE DIETZ
C20: début | D20: fin | E20: valeur début | F20: valeur fin | G20: performance
B21: période 1 | C21: =B7 -> 2016-01-01 | D21: =B11 -> 2016-07-01 | E21: =J9 -> 15000 | F21: =L9 -> 16500 | G21: =F21/E21-1 -> 0.1 | H21: =form(G21) -> =F21/E21-1
B22: période 2 | C22: =D21 -> 2016-07-01 | D22: =B15 -> 2017-01-01 | E22: =J13 -> 24750 | F22: =L13 -> 25950 | G22: =F22/E22-1 -> 0.04848484848 | H22: =F22/E22-1
B23: période 3 | C23: =D22 -> 2017-01-01 | D23: 2017-07-01 | E23: =J17 -> 25490 | F23: =L17 -> 25910 | G23: =F23/E23-1 -> 0.01647704982 | H23: =F23/E23-1
B24: Nb mois | F24: performance | G24: =(1+G21)*(1+G22)*(1+G23)-1 -> 0.1723368641 | H24: =(1+G21)*(1+G22)*(1+G23)-1
B25: =(D23-C21)/30.25 -> 18.08264463 | F25: annuelle prop | G25: =G24/18*12 -> 0.1148912428 | H25: =G24/18*12
F26: annuelle actua | G26: =(1+G24)^(12/18)-1 -> 0.1118211921 | H26: =(1+G24)^(12/18)-1
B27: METHODE TRI
C28: Flux Financiers | D28: durée | E28: montant
C29: =B7 -> 2016-01-01 | D29: =C30-C29 -> 182 | E29: =-G9 -> -15000 | F29: =form(E29) -> =-G9
C30: =B11 -> 2016-07-01 | D30: =C31-C30 -> 184 | E30: =-G13 -> -8250 | F30: =-G13
C31: =B15 -> 2017-01-01 | D31: =C32-C31 -> 181 | E31: =-G17 -> 460 | F31: =-G17
C32: =D23 -> 2017-07-01 | E32: =L17 -> 25910 | F32: =L17
D33: somme | E33: =SUM(E29:E32) -> 3120
C34: Rendement jour | E34: =XIRR(E29:E32,C29:C32) -> 0.1004484951 | F34: =TRI.PAIEMENTS(E29:E32;C29:C32)
E35: =(IRR(E29:E32)+1)^2 -1 -> 0.1003827285 | F35: =(TRI(E29:E32)+1)^2 -1 | H35: approx semestre
B36: METHODE DIETZ MODIFIEE
C37: début | E37: montant | F37: sens | G37: flux pondérés
B38: Numérateur | C38: =C29 -> 2016-01-01 | E38: =E29 -> -15000 | F38: 1 | G38: =E38*F38 -> -15000 | H38: =form(G38) -> =E38*F38
C39: =C30 -> 2016-07-01 | E39: =E30 -> -8250 | F39: 1 | G39: =E39*F39 -> -8250 | H39: =form(G39) -> =E39*F39
C40: 2017-01-01 | E40: 460 | F40: 1 | G40: 460 | H40: =E40*F40
C41: 2017-07-01 | E41: 25910 | F41: 1 | G41: 25910 | H41: =E41*F41
F42: pondération | G42: =SUM(G38:G41) -> 3120 | H42: =SOMME(G38:G41)
B43: Dénominateur | C43: =C38 -> 2016-01-01 | E43: =E38 -> -15000 | F43: -1 | G43: =E43*F43 -> 15000 | H43: =E43*F43
B44: période 1 | C44: =+C22 -> 2016-07-01 | D44: =+D22 -> 2017-01-01 | E44: =D44-C44 -> 184 | F44: =SUM(E44:E45)/E46 -> 0.6672760512 | G44: =-F44*E39 -> 5505.027422 | H44: =form(G44) -> =-F44*E39
B45: période 2 | C45: =+C23 -> 2017-01-01 | D45: =D23 -> 2017-07-01 | E45: =D45-C45 -> 181 | F45: =SUM(E45)/E46 -> 0.3308957952 | G45: =-F45*E40 -> -152.2120658 | H45: =form(G45) -> =-F45*E40
B46: durée totale | C46: =C43 -> 2016-01-01 | D46: =D45 -> 2017-07-01 | E46: =D46-C46 -> 547 | G46: =SUM(G43:G45) -> 20352.81536 | H46: =form(G46) -> =SOMME(G43:G45)
F47: taux proportionnel | G47: =G42/G46 -> 0.1532957453 | H47: =form(G47) -> =G42/G46
F48: taux annuel | G48: =G47/E46*365 -> 0.1022905796
C50: Flux | D50: Durée | E50: soldes TRI | F50: Dietz modifié | G50: Dietz modifié
C51: =E29 -> -15000 | F51: =-C51*($G$47*D52/$E$46) -> 765.0774859 | G51: =-C51*(1+$G$47) -> 17299.43618 | H51: =form(G51) -> =-C51*(1+$G$47)
C52: =E30 -> -8250 | D52: =D29 -> 182 | E52: =-C51*(1+$E$34)^(D52/365) -> 15733.27648 | F52: =(-C52-C51)*($G$47*D53/$E$46) -> 1198.901643 | G52: =-E39*(1+G47*F44) -> 9093.897282 | H52: =-E39*(1+G47*F44)
C53: =E31 -> 460 | D53: =D30 -> 184 | E53: =(-C52+E52)*(1+$E$34)^(D53/365) -> 25168.89848 | F53: =(-C52-C53-C51)*($G$47*D54/$E$46) -> 1156.020871 | G53: =-E40*(1+G47*F45) -> -483.3334621 | H53: =-E40*(1+G47*F45)
C54: =E32 -> 25910 | D54: =D31 -> 181 | E54: =(-C53+E53)*(1+$E$34)^(D54/365) -> 25909.99988 | F54: =SUM(F51:F53) -> 3120 | G54: =SUM(G51:G53) -> 25910 | H54: =SOMME(G51:G53)
A56: 8 | B56: Comparaisons Simples
C57: Dietz pas calculable sans valeur intermédiaires
C59: Date | D59: début | E59: durée | F59: Tri
B60: flux au début | C60: 2016-06-01 | D60: 40000 | F60: =-D60 -> -40000
B61: flux au milieu | C61: =EDATE(C60,6) -> 2016-12-01 | D61: 5000 | E61: =C61-C60 -> 183 | F61: =-D61 -> -5000
B62: flux à la fin | C62: =EDATE(C61,6) -> 2017-06-01 | D62: 50000 | E62: =C62-C61 -> 182 | F62: =D62 -> 50000
D63: ratio | E63: =(E62)/(E61+E62) -> 0.498630137
C65: Tri paiement | D65: =XIRR(F60:F62,C60:C62) -> 0.1178590953 | E65: taux annuel
C67: Numérateur | D67: =D62-D60-D61 -> 5000 | H67: =form(D67) -> =D62-D60-D61
C68: Dénominateur | D68: =D60+E63*D61 -> 42493.15068 | H68: =form(D68) -> =D60+E63*D61
C69: Performance période | D69: =D67/D68 -> 0.1176660219 | H69: =D67/D68
C70: Performance an | D70: =(1+D69)^(365/(E62+E61))-1 -> 0.1176660219 | H70: =(1+D69)^(365/(E62+E61))-1

Sheet DietzPort
A2: 12 | B2: CALCUL DE LA PERFORMANCE DE DIETZ CLASSIQUE
B4: Performance de l'investisseur vs performance du gestionnaire
C6: Contexte de l'exercice
C7: Apports | D7: Date | E7: Actif net | F7: VL unit | G7: Nb parts
C8: 2000000 | D8: 2015-12-31 | E8: =C8 -> 2000000 | F8: 200 | G8: =E8/F8 -> 10000
D9: 2016-01-31 | E9: =F9*G9 -> 2100000 | F9: 210 | G9: =G8 -> 10000
D10: 2016-02-28 | E10: =F10*G10 -> 2160000 | F10: 216 | G10: =G9 -> 10000
C11: 1944000 | D11: =+D10 -> 2016-02-28 | E11: =+E10+C11 -> 4104000 | F11: =F10 -> 216 | G11: =E11/F11 -> 19000
D12: 2016-03-31 | E12: 3895000 | F12: =E12/G11 -> 205 | G12: =E12/F12 -> 19000
B14: Première analyse du point de vue de l'investisseur
B16: Montant total investi | C16: =C8+C11 -> 3944000
B17: Valeur finale du portefeuille | C17: =+E12 -> 3895000
B18: Valeur ajoutée | C18: =C17-C16 -> -49000
B19: Rentabilité des investissements | C19: =C18/C16 -> -0.01242393509
B21: Deuxième analyse du point de vue de l'investisseur | C21: Approche par les flux
C22: =+D8 -> 2015-12-31 | D22: =-C8 -> -2000000 | E22: =form(D22) -> =-C8
B23: Val. Fut. de l'apport initial (durée totale) | C23: =+D9 -> 2016-01-31 | D23: 0 | E23: 0
B24: Val. Fut. de l'apport suivant (1/3 durée) | C24: =+D10 -> 2016-02-28 | D24: =-C11 -> -1944000 | E24: =-C11
B25: Egalité avec la valeur finale du ptf. | C25: =+D12 -> 2016-03-31 | D25: =E12 -> 3895000 | E25: =E12
B26: Taux de rendement interne par val cible (période) | C26: TRI excel : | D26: =(1+IRR(D22:D25,0.01))^3-1 -> -0.01847639584 | E26: =(1+TRI(D22:D25;0,01))^3-1
B27: taux annuel | D27: =XIRR(D22:D25,C22:C25) -> -0.07114287317 | E27: =TRI.PAIEMENTS(D22:D25;C22:C25)
B28: taux période | D28: =(1+D27)^(1/4)-1 -> -0.01828092521 | E28: =(1+D27)^(1/4)-1
B31: Point de vue du gérant du portefeuille
B33: VL unitaire début de période | C33: =F8 -> 200
B34: VL unitaire fin de période | C34: =F12 -> 205
B35: Performance de la VL | C35: =C34/C33-1 -> 0.025
B36: rentabilité annuelle | C36: =C35/4 -> 0.00625
B38: CALCUL DE LA PERFORMANCE DE DIETZ CLASSIQUE
B40: + Valorisation en fin de période | E40: =E12 -> 3895000 | F40: =form(E40) -> =E12
B41: - Apports nets intérimaires | E41: =-C11 -> -1944000 | F41: =-C11
B42: - Valorisation en début de période | E42: =-C8 -> -2000000 | F42: =-C8
B43: Numérateur de Dietz = valeur ajoutée pendant le trimestre : | E43: =SUM(E40:E42) -> -49000 | F43: =form(E43) -> =SOMME(E40:E42)
B45: + Valorisation en début de période | E45: =C8 -> 2000000 | F45: =C8
B46: + (Apports nets intérimaires)/2 | E46: =E41/2 -> -972000 | F46: =E41/2
B47: Dénominateur de Dietz = actif moyen géré pdt le trimestre : | E47: =SUM(E45:E46) -> 1028000 | F47: =form(E47) -> =SOMME(E45:E46)
C49: Performance de type "Dietz" : | E49: =E43/E47 -> -0.04766536965 | F49: =form(E49) -> =E43/E47
B51: 2) Approche de Dietz modifiée sur le trimestre
B53: + Valorisation en début de période | E53: =C8 -> 2000000
B54: + Apports nets intérimaires prorata temporis | E54: =C11/3 -> 648000
B55: Dénominateur de Dietz modifiée = actif moyen géré pdt le trimestre : | E55: =SUM(E53:E54) -> 2648000
C57: Performance de type "Dietz" modifiée: | E57: =E43/E55 -> -0.01850453172
B59: 3) Approche de Dietz sur pas mensuel chaîné sur le trimestre
B61: 2016-01-01
B62: Numérateur de Dietz = valeur ajoutée pendant le mois : | E62: =E9-E8 -> 100000
B63: Dénominateur de Dietz = actif moyen géré pdt le mois : | E63: =E8 -> 2000000
D64: Performance de type "Dietz" : | G64: =E62/E63 -> 0.05
B65: 2016-02-01
B66: Numérateur de Dietz = valeur ajoutée pendant le mois : | E66: =E10-E9 -> 60000
B67: Dénominateur de Dietz = actif moyen géré pdt le mois : | E67: =E9+C11/2 -> 3072000
D68: Performance de type "Dietz" : | G68: =E66/E67 -> 0.01953125
B69: 2016-03-01
B70: Numérateur de Dietz = valeur ajoutée pendant le mois : | E70: =E12-E11 -> -209000
B71: Dénominateur de Dietz = actif moyen géré pdt le mois : | E71: =E11 -> 4104000
D72: Performance de type "Dietz" : | G72: =E70/E71 -> -0.05092592593
C74: Trimestre : | D74: Performance de type "Dietz" : | G74: =(1+G64)*(1+G68)*(1+G72)-1 -> 0.01599121094
B76: 4) Approche de Dietz modifiée sur pas mensuel chaîné sur le trimestre
B78: =B61 -> 2016-01-01
B79: Numérateur de Dietz = valeur ajoutée pendant le mois : | E79: =E62 -> 100000
B80: Dénominateur de Dietz = actif moyen géré pdt le mois : | E80: =E63 -> 2000000
C81: Performance de type "Dietz" modifiée : | G81: =E79/E80 -> 0.05
B82: =B65 -> 2016-02-01
B83: Numérateur de Dietz = valeur ajoutée pendant le mois : | E83: =E66 -> 60000
B84: Dénominateur de Dietz = actif moyen géré pdt le mois : | E84: =E9 -> 2100000
C85: Performance de type "Dietz" modifiée : | G85: =E83/E84 -> 0.02857142857
B86: =B69 -> 2016-03-01
B87: Numérateur de Dietz = valeur ajoutée pendant le mois : | E87: =E70 -> -209000
B88: Dénominateur de Dietz = actif moyen géré pdt le mois : | E88: =E71 -> 4104000
C89: Performance de type "Dietz" modifiée : | G89: =E87/E88 -> -0.05092592593
B91: Trimestre : | C91: Performance de type "Dietz" modifiée : | G91: =(1+G81)*(1+G85)*(1+G89)-1 -> 0.025

Sheet Conversion
B2: Performance annualisée arithmétique:
B4: CONVERSION PERFORMANCE ANNUALISEE
B6: l est possible de passer directement des performances cumulées (R) aux performances annualisées (r).
B8: ARITHMETIQUE | F8: M1
M9: Exemple de recomposition en continu
B10: Invt (t0) | C10: 220 | M10: NB recomposition période | O10: P | P10: Taux
B11: Invt (t1) | C11: 230 | M11: =MAX(N:N) -> 4200 | N11: 1 | O11: 40000
B12: T (an) | C12: 1 | I12: Mi Arith | J12: M2 Géo | K12: M3 Continu | M12: Après recomposition | N12: 2 | O12: =P12+O11 -> 40000.46467 | P12: =O11*M$15*C$12/$M$11 -> 0.4646682302
H13: Invt (t1) | I13: =(1+C19*C12)*C10 -> 230 | J13: =C10*(1+C29)^C12 -> 230 | K13: =EXP(C35*C12)*C10 -> 230 | M13: Invt (t1) | N13: 3 | O13: =P13+O12 -> 40000.92934 | P13: =O12*M$15*C$12/$M$11 -> 0.4646736281
H14: verif | I14: =I13-$C$11 -> 0 | J14: =J13-$C$11 -> 0 | K14: =K13-$C$11 -> 0 | L14: P1 réel | M14: 50000 | N14: 4 | O14: =P14+O13 -> 40001.39402 | P14: =O13*M$15*C$12/$M$11 -> 0.4646790261
B15: Verif Perf | C15: =C19*C12 -> 0.04545454545 | F15: =(10/220) -> 0.04545454545 | L15: Estim rc | M15: =Performance!C10 -> 0.04879016417 | N15: 5 | O15: 40001.85871 | P15: 0.4646844241
L16: PI Cacl | M16: =O4210 -> 41999.5002 | N16: 6 | O16: 40002.3234 | P16: 0.4646898222
N17: 7 | O17: 40002.78809 | P17: 0.4646952204
N18: 8 | O18: 40003.25279 | P18: 0.4647006186
B19: Verif taux annuel | C19: =1/C12*(C11-C10)/C10 -> 0.04545454545 | N19: 9 | O19: 40003.7175 | P19: 0.4647060169
B20: Taux annuel rA | N20: 10 | O20: 40004.18221 | P20: 0.4647114153
N21: 11 | O21: 40004.64693 | P21: 0.4647168137
B22: GEOMETRIQUE | F22: M2 | N22: 12 | O22: 40005.11165 | P22: 0.4647222121
N23: 13 | O23: 40005.57638 | P23: 0.4647276107
B24: Verif Perf | N24: 14 | O24: 40006.04111 | P24: 0.4647330093
B25: Sur période Rg | C25: =C35*C12 -> 0.04445176257 | N25: 15 | O25: 40006.50585 | P25: 0.464738408
N26: 16 | O26: 40006.97059 | P26: 0.4647438067
N27: 17 | O27: 40007.43534 | P27: 0.4647492055
N28: 18 | O28: 40007.90009 | P28: 0.4647546043
B29: Verif taux annuel | C29: =(POWER(C11/C10,1/C12)-1)/C12 -> 0.04545454545 | N29: 19 | O29: 40008.36485 | P29: 0.4647600033
B30: Taux annuel rg | N30: 20 | O30: 40008.82962 | P30: 0.4647654022
B31: Verif | C31: =POWER(1+C15,1/C12)-1 -> 0.04545454545 | N31: 21 | O31: 40009.29439 | P31: 0.4647708013
B32: CONTINU | F32: M3 | N32: 22 | O32: 40009.75917 | P32: 0.4647762004
N33: 23 | O33: 40010.22395 | P33: 0.4647815996
N34: 24 | O34: 40010.68874 | P34: 0.4647869988
B35: Verif taux continu | C35: =1/C12*LN(C11/C10) -> 0.04445176257 | N35: 25 | O35: 40011.15353 | P35: 0.4647923981
B36: Taux periode rc | N36: 26 | O36: 40011.61833 | P36: 0.4647977974
N37: 27 | O37: 40012.08313 | P37: 0.4648031969
N38: 28 | O38: 40012.54794 | P38: 0.4648085963
N39: 29 | O39: 40013.01275 | P39: 0.4648139959
N40: 30 | O40: 40013.47757 | P40: 0.4648193955
N41: 31 | O41: 40013.9424 | P41: 0.4648247952
N42: 32 | O42: 40014.40723 | P42: 0.4648301949
N43: 33 | O43: 40014.87206 | P43: 0.4648355947
N44: 34 | O44: 40015.3369 | P44: 0.4648409945
N45: 35 | O45: 40015.80175 | P45: 0.4648463945
N46: 36 | O46: 40016.2666 | P46: 0.4648517944
N47: 37 | O47: 40016.73146 | P47: 0.4648571945
N48: 38 | O48: 40017.19632 | P48: 0.4648625946
N49: 39 | O49: 40017.66119 | P49: 0.4648679948
N50: 40 | O50: 40018.12606 | P50: 0.464873395
N51: 41 | O51: 40018.59094 | P51: 0.4648787953
N52: 42 | O52: 40019.05582 | P52: 0.4648841957
N53: 43 | O53: 40019.52071 | P53: 0.4648895961
N54: 44 | O54: 40019.98561 | P54: 0.4648949966
N55: 45 | O55: 40020.45051 | P55: 0.4649003971
N56: 46 | O56: 40020.91542 | P56: 0.4649057977
N57: 47 | O57: 40021.38033 | P57: 0.4649111984
N58: 48 | O58: 40021.84524 | P58: 0.4649165991
E59: 1 | N59: 49 | O59: 40022.31016 | P59: 0.4649219999
N60: 50 | O60: 40022.77509 | P60: 0.4649274008
E61: 3 | N61: 51 | O61: 40023.24003 | P61: 0.4649328017
N62: 52 | O62: 40023.70496 | P62: 0.4649382027
N63: 53 | O63: 40024.16991 | P63: 0.4649436038
N64: 54 | O64: 40024.63486 | P64: 0.4649490049
N65: 55 | O65: 40025.09981 | P65: 0.4649544061
N66: 56 | O66: 40025.56477 | P66: 0.4649598073
N67: 57 | O67: 40026.02974 | P67: 0.4649652086
N68: 58 | O68: 40026.49471 | P68: 0.46497061
N69: 59 | O69: 40026.95968 | P69: 0.4649760114
N70: 60 | O70: 40027.42466 | P70: 0.4649814129
N71: 61 | O71: 40027.88965 | P71: 0.4649868144
N72: 62 | O72: 40028.35464 | P72: 0.464992216
N73: 63 | O73: 40028.81964 | P73: 0.4649976177
N74: 64 | O74: 40029.28464 | P74: 0.4650030195
N75: 65 | O75: 40029.74965 | P75: 0.4650084213
N76: 66 | O76: 40030.21467 | P76: 0.4650138231
N77: 67 | O77: =P77+O76 -> 40030.67968 | P77: =O76*M$15*C$12/$M$11 -> 0.4650192251
N78: 68 | O78: 40031.14471 | P78: 0.4650246271
N79: 69 | O79: 40031.60974 | P79: 0.4650300291
N80: 70 | O80: 40032.07477 | P80: 0.4650354312
N81: 71 | O81: 40032.53982 | P81: 0.4650408334
N82: 72 | O82: 40033.00486 | P82: 0.4650462356
N83: 73 | O83: 40033.46991 | P83: 0.465051638
N84: 74 | O84: 40033.93497 | P84: 0.4650570403
N85: 75 | O85: 40034.40003 | P85: 0.4650624428
N86: 76 | O86: 40034.8651 | P86: 0.4650678452
N87: 77 | O87: 40035.33017 | P87: 0.4650732478
N88: 78 | O88: 40035.79525 | P88: 0.4650786504
N89: 79 | O89: 40036.26034 | P89: 0.4650840531
N90: 80 | O90: 40036.72543 | P90: 0.4650894558
N91: 81 | O91: 40037.19052 | P91: 0.4650948587
N92: 82 | O92: 40037.65562 | P92: 0.4651002615
N93: 83 | O93: 40038.12073 | P93: 0.4651056645
N94: 84 | O94: 40038.58584 | P94: 0.4651110675
N95: 85 | O95: 40039.05095 | P95: 0.4651164705
N96: 86 | O96: 40039.51608 | P96: 0.4651218736
N97: 87 | O97: 40039.9812 | P97: 0.4651272768
N98: 88 | O98: 40040.44634 | P98: 0.4651326801
N99: 89 | O99: 40040.91147 | P99: 0.4651380834
N100: 90 | O100: 40041.37662 | P100: 0.4651434867
N101: 91 | O101: 40041.84177 | P101: 0.4651488902
N102: 92 | O102: 40042.30692 | P102: 0.4651542937
N103: 93 | O103: 40042.77208 | P103: 0.4651596972
N104: 94 | O104: 40043.23725 | P104: 0.4651651009
N105: 95 | O105: 40043.70242 | P105: 0.4651705045
N106: 96 | O106: 40044.16759 | P106: 0.4651759083
N107: 97 | O107: 40044.63277 | P107: 0.4651813121
N108: 98 | O108: 40045.09796 | P108: 0.465186716
N109: 99 | O109: 40045.56315 | P109: 0.4651921199
N110: 100 | O110: 40046.02835 | P110: 0.4651975239
N111: 101 | O111: 40046.49355 | P111: 0.465202928
N112: 102 | O112: 40046.95876 | P112: 0.4652083321
N113: 103 | O113: 40047.42397 | P113: 0.4652137363
N114: 104 | O114: 40047.88919 | P114: 0.4652191405
N115: 105 | O115: 40048.35442 | P115: 0.4652245449
N116: 106 | O116: 40048.81965 | P116: 0.4652299492
N117: 107 | O117: 40049.28488 | P117: 0.4652353537
N118: 108 | O118: 40049.75012 | P118: 0.4652407582
N119: 109 | O119: 40050.21537 | P119: 0.4652461627
N120: 110 | O120: 40050.68062 | P120: 0.4652515674
N121: 111 | O121: 40051.14588 | P121: 0.4652569721
N122: 112 | O122: 40051.61114 | P122: 0.4652623768
N123: 113 | O123: 40052.07641 | P123: 0.4652677816
N124: 114 | O124: 40052.54168 | P124: 0.4652731865
N125: 115 | O125: 40053.00696 | P125: 0.4652785915
N126: 116 | O126: 40053.47225 | P126: 0.4652839965
N127: 117 | O127: 40053.93753 | P127: 0.4652894015
N128: 118 | O128: 40054.40283 | P128: 0.4652948067
N129: 119 | O129: 40054.86813 | P129: 0.4653002118
N130: 120 | O130: 40055.33344 | P130: 0.4653056171
N131: 121 | O131: 40055.79875 | P131: 0.4653110224
N132: 122 | O132: 40056.26406 | P132: 0.4653164278
N133: 123 | O133: 40056.72938 | P133: 0.4653218332
N134: 124 | O134: 40057.19471 | P134: 0.4653272388
N135: 125 | O135: 40057.66004 | P135: 0.4653326443
N136: 126 | O136: 40058.12538 | P136: 0.46533805
N137: 127 | O137: 40058.59073 | P137: 0.4653434557
N138: 128 | O138: 40059.05607 | P138: 0.4653488614
N139: 129 | O139: 40059.52143 | P139: 0.4653542672
N140: 130 | O140: 40059.98679 | P140: 0.4653596731
N141: 131 | O141: =P141+O140 -> 40060.45215 | P141: =O140*M$15*C$12/$M$11 -> 0.4653650791
N142: 132 | O142: 40060.91752 | P142: 0.4653704851
N143: 133 | O143: 40061.3829 | P143: 0.4653758911
N144: 134 | O144: 40061.84828 | P144: 0.4653812973
N145: 135 | O145: 40062.31367 | P145: 0.4653867035
N146: 136 | O146: 40062.77906 | P146: 0.4653921097
N147: 137 | O147: 40063.24446 | P147: 0.4653975161
N148: 138 | O148: 40063.70986 | P148: 0.4654029224
N149: 139 | O149: 40064.17527 | P149: 0.4654083289
N150: 140 | O150: 40064.64068 | P150: 0.4654137354
N151: 141 | O151: 40065.1061 | P151: 0.465419142
N152: 142 | O152: 40065.57153 | P152: 0.4654245486
N153: 143 | O153: 40066.03696 | P153: 0.4654299553
N154: 144 | O154: 40066.50239 | P154: 0.4654353621
N155: 145 | O155: 40066.96783 | P155: 0.4654407689
N156: 146 | O156: 40067.43328 | P156: 0.4654461758
N157: 147 | O157: 40067.89873 | P157: 0.4654515827
N158: 148 | O158: 40068.36419 | P158: 0.4654569898
N159: 149 | O159: 40068.82965 | P159: 0.4654623968
N160: 150 | O160: 40069.29512 | P160: 0.465467804
N161: 151 | O161: 40069.76059 | P161: 0.4654732112
N162: 152 | O162: 40070.22607 | P162: 0.4654786184
N163: 153 | O163: 40070.69155 | P163: 0.4654840258
N164: 154 | O164: 40071.15704 | P164: 0.4654894332
N165: 155 | O165: 40071.62254 | P165: 0.4654948406
N166: 156 | O166: 40072.08804 | P166: 0.4655002481
N167: 157 | O167: 40072.55354 | P167: 0.4655056557
N168: 158 | O168: 40073.01905 | P168: 0.4655110634
N169: 159 | O169: 40073.48457 | P169: 0.4655164711
N170: 160 | O170: 40073.95009 | P170: 0.4655218788
N171: 161 | O171: 40074.41562 | P171: 0.4655272867
N172: 162 | O172: 40074.88115 | P172: 0.4655326945
N173: 163 | O173: 40075.34669 | P173: 0.4655381025
N174: 164 | O174: 40075.81223 | P174: 0.4655435105
N175: 165 | O175: 40076.27778 | P175: 0.4655489186
N176: 166 | O176: 40076.74334 | P176: 0.4655543268
N177: 167 | O177: 40077.2089 | P177: 0.465559735
N178: 168 | O178: 40077.67446 | P178: 0.4655651432
N179: 169 | O179: 40078.14003 | P179: 0.4655705516
N180: 170 | O180: 40078.60561 | P180: 0.46557596
N181: 171 | O181: 40079.07119 | P181: 0.4655813684
N182: 172 | O182: 40079.53678 | P182: 0.4655867769
N183: 173 | O183: 40080.00237 | P183: 0.4655921855
N184: 174 | O184: 40080.46797 | P184: 0.4655975942
N185: 175 | O185: 40080.93357 | P185: 0.4656030029
N186: 176 | O186: 40081.39918 | P186: 0.4656084117
N187: 177 | O187: 40081.86479 | P187: 0.4656138205
N188: 178 | O188: 40082.33041 | P188: 0.4656192294
N189: 179 | O189: 40082.79604 | P189: 0.4656246384
N190: 180 | O190: 40083.26167 | P190: 0.4656300474
N191: 181 | O191: 40083.7273 | P191: 0.4656354565
N192: 182 | O192: 40084.19294 | P192: 0.4656408656
N193: 183 | O193: 40084.65859 | P193: 0.4656462748
N194: 184 | O194: 40085.12424 | P194: 0.4656516841
N195: 185 | O195: 40085.5899 | P195: 0.4656570934
N196: 186 | O196: 40086.05556 | P196: 0.4656625028
N197: 187 | O197: 40086.52123 | P197: 0.4656679123
N198: 188 | O198: 40086.9869 | P198: 0.4656733218
N199: 189 | O199: 40087.45258 | P199: 0.4656787314
N200: 190 | O200: 40087.91826 | P200: 0.4656841411
N201: 191 | O201: 40088.38395 | P201: 0.4656895508
N202: 192 | O202: 40088.84965 | P202: 0.4656949606
N203: 193 | O203: 40089.31535 | P203: 0.4657003704
N204: 194 | O204: 40089.78105 | P204: 0.4657057803
... 4006 more rows
